fUST/lending_fUST_20240429
["ID","MTS","AMOUNT","RATE_DAILY","PERIOD"]
[324896651,1714403444600,-3000.0,0.0003759,32]
[324896653,1714403444609,-3000.0,0.000376,32]
[324896654,1714403444620,-3000.0,0.0003761,32]
[324896657,1714403444630,-3000.0,0.0003762,32]
[324896666,1714403444705,-3000.0,0.0003763,32]
[324896668,1714403444714,-3000.0,0.0003764,32]
[324896670,1714403444723,-3000.0,0.0003765,32]
[324896672,1714403444732,-3000.0,0.0003766,32]
[324896674,1714403444743,-1331.07051346,0.0003776,7]
[324896676,1714403444753,-203.7672836,0.00037858,2]
[324896677,1714403444763,-203.7672836,0.00037858,2]
[324896679,1714403444772,-203.7672836,0.00037858,2]
[324896682,1714403444785,-203.7672836,0.00037858,2]
[324896684,1714403444795,-203.7672836,0.00037858,2]
[324896686,1714403444804,-153.0,0.00037858,2]
[324896688,1714403444813,-153.0,0.00037858,2]
[324896690,1714403444823,-203.7672836,0.00037858,2]
[324896692,1714403444833,-153.0,0.00037858,2]
[324896694,1714403444843,-153.0,0.00037858,2]
[324896696,1714403444852,-153.0,0.00037858,2]
[324896697,1714403444861,-153.0,0.00037858,2]
[324896699,1714403444872,-153.0,0.00037858,2]
[324896701,1714403444881,-153.0,0.00037858,2]
[324896704,1714403444891,-153.0,0.00037858,2]
[324896705,1714403444901,-153.0,0.00037858,2]
[324896708,1714403444911,-153.0,0.00037858,2]
[324896710,1714403444920,-153.0,0.00037858,2]
[324896712,1714403444930,-153.0,0.00037858,2]
[324896713,1714403444939,-203.7672836,0.00037858,2]
[324896716,1714403444949,-153.0,0.00037858,2]
[324896718,1714403444958,-153.0,0.00037858,2]
[324896720,1714403444971,-153.0,0.00037858,2]
[324896722,1714403444980,-153.0,0.00037858,2]
[324896723,1714403444989,-153.0,0.00037858,2]
[324896725,1714403444998,-153.0,0.00037858,2]
[324896727,1714403445008,-153.0,0.00037858,2]
[324896729,1714403445019,-153.0,0.00037858,2]
[324896732,1714403445029,-153.0,0.00037858,2]
[324896733,1714403445038,-153.0,0.00037858,2]
[324896735,1714403445049,-153.0,0.00037858,2]
[324896738,1714403445060,-203.7672836,0.00037858,2]
[324896740,1714403445070,-153.0,0.00037858,2]
[324896742,1714403445079,-153.0,0.00037858,2]
[324896744,1714403445088,-153.0,0.00037858,2]
[324896746,1714403445097,-153.0,0.00037858,2]
[324896748,1714403445107,-153.0,0.00037858,2]
[324896749,1714403445117,-153.0,0.00037858,2]
[324896751,1714403445126,-153.0,0.00037858,2]
[324896753,1714403445136,-153.0,0.00037858,2]
[324896756,1714403445146,-153.0,0.00037858,2]
[324896758,1714403445155,-153.0,0.00037858,2]
[324896760,1714403445164,-153.0,0.00037858,2]
[324896761,1714403445173,-153.0,0.00037858,2]
[324896763,1714403445183,-153.0,0.00037858,2]
[324896765,1714403445192,-203.7672836,0.00037858,2]
[324896767,1714403445201,-153.0,0.00037858,2]
[324896769,1714403445210,-153.0,0.00037858,2]
[324896771,1714403445219,-153.0,0.00037858,2]
[324896773,1714403445229,-153.0,0.00037858,2]
[324896776,1714403445238,-153.0,0.00037858,2]
[324896778,1714403445248,-153.0,0.00037858,2]
[324896780,1714403445258,-153.0,0.00037858,2]
[324896781,1714403445267,-203.7672836,0.00037858,2]
[324896784,1714403445277,-153.0,0.00037858,2]
[324896785,1714403445286,-153.0,0.00037858,2]
[324896788,1714403445295,-153.0,0.00037858,2]
[324896789,1714403445305,-153.0,0.00037858,2]
[324896792,1714403445314,-153.0,0.00037858,2]
[324896793,1714403445323,-153.0,0.00037858,2]
[324896795,1714403445332,-153.0,0.00037858,2]
[324896797,1714403445342,-153.0,0.00037858,2]
[324896799,1714403445351,-153.0,0.00037858,2]
[324896802,1714403445362,-203.7672836,0.00037858,2]
[324896804,1714403445374,-203.7672836,0.00037858,2]
[324896806,1714403445383,-153.0,0.00037858,2]
[324896808,1714403445392,-153.0,0.00037858,2]
[324896810,1714403445401,-153.0,0.00037858,2]
[324896812,1714403445409,-153.0,0.00037858,2]
[324896814,1714403445418,-153.0,0.00037858,2]
[324896816,1714403445427,-153.0,0.00037858,2]
[324896818,1714403445435,-153.0,0.00037858,2]
[324896819,1714403445444,-203.7672836,0.00037858,2]
[324896821,1714403445454,-203.7672836,0.00037858,2]
[324896824,1714403445464,-153.0,0.00037858,2]
[324896825,1714403445473,-153.0,0.00037858,2]
[324896828,1714403445482,-153.0,0.00037858,2]
[324896829,1714403445491,-153.0,0.00037858,2]
[324896831,1714403445500,-203.7672836,0.00037858,2]
[324896833,1714403445509,-153.0,0.00037858,2]
[324896835,1714403445519,-153.0,0.00037858,2]
[324896837,1714403445528,-153.0,0.00037858,2]
[324896840,1714403445537,-153.0,0.00037858,2]
[324896842,1714403445548,-153.0,0.00037858,2]
[324896844,1714403445557,-153.0,0.00037858,2]
[324896846,1714403445567,-153.0,0.00037858,2]
[324896848,1714403445575,-153.0,0.00037858,2]
[324896850,1714403445584,-153.0,0.00037858,2]
[324896852,1714403445593,-153.0,0.00037858,2]
[324896853,1714403445602,-153.0,0.00037858,2]
[324896856,1714403445611,-153.0,0.00037858,2]
[324896857,1714403445623,-153.0,0.00037858,2]
[324896860,1714403445631,-153.0,0.00037858,2]
[324896862,1714403445641,-153.0,0.00037858,2]
[324896863,1714403445649,-153.0,0.00037858,2]
[324896866,1714403445658,-153.0,0.00037858,2]
[324896867,1714403445668,-153.0,0.00037858,2]
[324896876,1714403445738,-153.0,0.00037858,2]
[324896878,1714403445748,-153.0,0.00037858,2]
[324896880,1714403445757,-153.0,0.00037858,2]
[324896882,1714403445767,-153.0,0.00037858,2]
[324896885,1714403445777,-153.0,0.00037858,2]
[324896887,1714403445786,-153.0,0.00037858,2]
[324896889,1714403445795,-153.0,0.00037858,2]
[324896891,1714403445804,-153.0,0.00037858,2]
[324896893,1714403445813,-171.8927227,0.00037858,2]
[324896896,1714403445823,-153.34957971,0.00037976,24]
[324896899,1714403445832,-5009.79512819,0.00038,2]
[324896902,1714403445842,-620.0,0.00038129,2]
[324896903,1714403445851,-500.0,0.00038356,10]
[324896906,1714403445860,-999.0,0.00038356,2]
[324896907,1714403445870,-300.0,0.000384,12]
[324896908,1714403445879,-153.34957969,0.00038476,26]
[324896909,1714403445888,-1012.215079,0.00038862,30]
[324896911,1714403445898,-4579.0,0.00038865,3]
[324896912,1714403445908,-153.34957969,0.00038976,28]
[324896913,1714403445917,-204.0,0.00039,2]
[324896914,1714403445926,-417.0,0.00039245,2]
[324896915,1714403445935,-150.0,0.00039245,2]
[324896916,1714403445945,-232.10092761,0.00039397,30]
[324896917,1714403445955,-300.0,0.000394,13]
[324896918,1714403445966,-999.0,0.00039452,4]
[324896919,1714403445979,-153.34957969,0.00039476,30]
[324896920,1714403445988,-1452.07692378,0.0003968,11]
[324896921,1714403445998,-565.05492021,0.00039726,10]
[324896923,1714403446007,-2873.84165817,0.000398,60]
[324896925,1714403446017,-184.0,0.0003997,35]
[324896927,1714403446027,-150.5,0.0003997,35]
[324896929,1714403446036,-184.0,0.0003998,35]
[324896931,1714403446045,-150.5,0.0003998,35]
[324896933,1714403446055,-184.0,0.0003999,35]
[324896935,1714403446066,-150.5,0.0003999,35]
[324896937,1714403446075,-995.16145114,0.0004,10]
[324896939,1714403446084,-4253.66286157,0.0004,4]
[324896941,1714403446094,-202.6081951,0.0004,2]
[324896943,1714403446103,-2708.0,0.0004,30]
[324896945,1714403446112,-153.08,0.0004,120]
[324896947,1714403446123,-7480.50380699,0.0004,2]
[324896949,1714403446132,-56045.77280973,0.0004,7]
[324896951,1714403446141,-1590.52958367,0.0004,15]
[324896953,1714403446151,-4804.0521499,0.0004,2]
[324896955,1714403446160,-359.6913144,0.0004,2]
[324896957,1714403446170,-1089.44403781,0.0004,2]
[324896959,1714403446179,-210.13266618,0.0004,120]
[324896961,1714403446192,-153.43131253,0.00040017,3]
[324896964,1714403446211,-620.0,0.00040036,2]
[324896967,1714403446226,-13772.3960811,0.0004013,2]
[324896970,1714403446245,-177.75,0.000402,16]
[324896973,1714403446265,-588.0,0.000403,30]
[324896976,1714403446280,-151.0,0.0004034,34]
[324896979,1714403446298,-151.31843755,0.00040342,6]
[324896981,1714403446311,-317.78682225,0.00040381,2]
[324896984,1714403446326,-300.0,0.000404,14]
[324896987,1714403446346,-955.6318,0.000404,30]
[324896989,1714403446360,-1161.98061199,0.00040423,4]
[324896992,1714403446377,-154.76784823,0.00040423,68]
[324896995,1714403446394,-2401.59068717,0.00040423,2]
[324896998,1714403446408,-538.74898362,0.00040423,4]
[324897000,1714403446423,-154.98003273,0.00040423,4]
[324897003,1714403446436,-154.76784823,0.00040423,4]
[324897005,1714403446451,-500.0,0.00040423,5]
[324897008,1714403446464,-999.0,0.00040547,6]
[324897010,1714403446480,-446.705059,0.00040548,2]
[324897013,1714403446494,-167.52,0.00040591,35]
[324897015,1714403446508,-4066.28058966,0.00040601,7]
[324897018,1714403446522,-1164955.97699964,0.00040601,90]
[324897021,1714403446537,-151.0,0.00040601,2]
[324897023,1714403446552,-151.0,0.00040601,2]
[324897026,1714403446566,-151.0,0.00040601,2]
[324897028,1714403446580,-1092.826854,0.00040601,2]
[324897029,1714403446595,-1092.826854,0.00040601,2]
[324897030,1714403446610,-151.0,0.00040601,2]
[324897031,1714403446625,-151.0,0.00040601,2]
[324897032,1714403446640,-151.0,0.00040601,2]
[324897033,1714403446655,-949.860443,0.00040601,2]
[324897034,1714403446669,-949.860443,0.00040601,2]
[324897035,1714403446684,-151.0,0.00040601,2]
[324897036,1714403446698,-151.0,0.00040601,2]
[324897037,1714403446713,-151.0,0.00040601,2]
[324897038,1714403446728,-575.374773,0.00040601,2]
[324897039,1714403446742,-575.374773,0.00040601,2]
[324897040,1714403446757,-151.0,0.00040601,2]
[324897041,1714403446772,-151.0,0.00040601,2]
[324897042,1714403446784,-1000.812377,0.00040601,2]
[324897043,1714403446793,-151.0,0.00040601,2]
[324897044,1714403446803,-1000.812377,0.00040601,2]
[324897045,1714403446812,-466.666828,0.00040601,2]
[324897046,1714403446821,-466.666828,0.00040601,2]
[324897047,1714403446831,-151.0,0.00040601,2]
[324897048,1714403446840,-151.0,0.00040601,2]
[324897052,1714403446947,-312.807001,0.00040601,2]
[324897053,1714403446995,-151.0,0.00040601,2]
[324897054,1714403447007,-312.807001,0.00040601,2]
[324897055,1714403447017,-151.0,0.00040601,2]
[324897056,1714403447027,-151.0,0.00040601,2]
[324897057,1714403447036,-151.0,0.00040601,2]
[324897058,1714403447046,-302.016416,0.00040601,2]
[324897059,1714403447056,-302.016416,0.00040601,2]
[324897060,1714403447066,-151.748716,0.00040601,2]
[324897061,1714403447076,-569.047712,0.00040601,2]
[324897062,1714403447085,-190.869089,0.00040601,2]
[324897063,1714403447095,-190.869089,0.00040601,2]
[324897064,1714403447104,-569.047712,0.00040601,2]
[324897065,1714403447114,-615.913097,0.00040601,2]
[324897066,1714403447127,-615.913097,0.00040601,2]
[324897067,1714403447137,-1000.0,0.00041,7]
[324897068,1714403447146,-1000.0,0.00041,7]
[324897069,1714403447155,-1000.0,0.00041,7]
[324897070,1714403447163,-1000.0,0.00041,7]
[324897071,1714403447172,-1000.0,0.00041,7]
[324897072,1714403447181,-1000.0,0.00041,7]
[324897073,1714403447190,-1000.0,0.00041,7]
[324897074,1714403447199,-1000.0,0.00041,7]
[324897075,1714403447208,-1000.0,0.00041,7]
[324897076,1714403447218,-1000.0,0.00041,7]
[324897077,1714403447227,-1000.0,0.00041,7]
[324897078,1714403447237,-5748.94104312,0.00041,7]
[324897079,1714403447246,-188.98640903,0.00041,2]
[324897080,1714403447256,-1000.51291268,0.00041,15]
[324897081,1714403447265,-252.6859923,0.00041,2]
[324897082,1714403447275,-162.0,0.00041,14]
[324897083,1714403447284,-1237.663661,0.00041096,7]
[324897084,1714403447294,-177.9785063,0.00041096,2]
[324897085,1714403447303,-527.96633705,0.00041096,31]
[324897086,1714403447313,-527.96633705,0.00041096,31]
[324897087,1714403447322,-527.96633705,0.00041096,31]
[324897088,1714403447331,-527.96633705,0.00041096,31]
[324897089,1714403447340,-527.96633705,0.00041096,31]
[324897090,1714403447349,-527.96633705,0.00041096,31]
[324897091,1714403447358,-527.96633705,0.00041096,31]
[324897092,1714403447368,-527.96633705,0.00041096,31]
[324897093,1714403447377,-527.96633705,0.00041096,31]
[324897094,1714403447387,-527.96633705,0.00041096,31]
[324897095,1714403447396,-527.96633705,0.00041096,31]
[324897096,1714403447405,-527.96633705,0.00041096,31]
[324897097,1714403447415,-527.96633705,0.00041096,31]
[324897098,1714403447425,-527.96633705,0.00041096,31]
[324897099,1714403447435,-527.96633705,0.00041096,31]
[324897100,1714403447444,-527.96633705,0.00041096,31]
[324897101,1714403447454,-527.96633705,0.00041096,31]
[324897102,1714403447464,-527.96633705,0.00041096,31]
[324897103,1714403447474,-527.96633705,0.00041096,31]
[324897104,1714403447483,-527.96633705,0.00041096,31]
[324897105,1714403447493,-527.96633705,0.00041096,31]
[324897106,1714403447503,-527.96633705,0.00041096,31]
[324897107,1714403447512,-527.96633705,0.00041096,31]
[324897108,1714403447522,-527.96633705,0.00041096,31]
[324897109,1714403447532,-527.96633705,0.00041096,31]
[324897110,1714403447542,-527.96633705,0.00041096,31]
[324897111,1714403447551,-527.96633705,0.00041096,31]
[324897112,1714403447561,-527.96633705,0.00041096,31]
[324897113,1714403447572,-527.96633705,0.00041096,31]
[324897114,1714403447581,-527.96633705,0.00041096,31]
[324897115,1714403447591,-527.96633705,0.00041096,31]
[324897116,1714403447601,-527.96633705,0.00041096,31]
[324897117,1714403447611,-527.96633705,0.00041096,31]
[324897118,1714403447622,-527.96633705,0.00041096,31]
[324897119,1714403447632,-527.96633705,0.00041096,31]
[324897120,1714403447641,-527.96633705,0.00041096,31]
[324897121,1714403447651,-527.96633705,0.00041096,31]
[324897122,1714403447660,-527.96633705,0.00041096,31]
[324897123,1714403447671,-527.96633705,0.00041096,31]
[324897124,1714403447681,-527.96633705,0.00041096,31]
[324897125,1714403447690,-527.96633705,0.00041096,31]
[324897126,1714403447700,-527.96633705,0.00041096,31]
[324897127,1714403447710,-527.96633705,0.00041096,31]
[324897128,1714403447720,-527.96633705,0.00041096,31]
[324897129,1714403447730,-527.96633705,0.00041096,31]
[324897130,1714403447739,-527.96633705,0.00041096,31]
[324897131,1714403447749,-527.96633705,0.00041096,31]
[324897132,1714403447758,-527.96633705,0.00041096,31]
[324897133,1714403447768,-527.96633705,0.00041096,31]
[324897134,1714403447777,-527.96633705,0.00041096,31]
[324897135,1714403447787,-527.96633705,0.00041096,31]
[324897136,1714403447796,-527.96633705,0.00041096,31]
[324897137,1714403447806,-527.96633705,0.00041096,31]
[324897138,1714403447816,-527.96633705,0.00041096,31]
[324897139,1714403447825,-527.96633705,0.00041096,31]
[324897140,1714403447834,-527.96633705,0.00041096,31]
[324897141,1714403447843,-527.96633705,0.00041096,31]
[324897142,1714403447853,-527.96633705,0.00041096,31]
[324897143,1714403447862,-527.96633705,0.00041096,31]
[324897144,1714403447875,-527.96633705,0.00041096,31]
[324897145,1714403447884,-585.11727367,0.00041096,31]
[324897146,1714403447894,-585.11727367,0.00041096,31]
[324897147,1714403447904,-585.11727367,0.00041096,31]
[324897148,1714403447913,-585.11727367,0.00041096,31]
[324897149,1714403447923,-585.11727367,0.00041096,31]
[324897150,1714403447932,-585.11727367,0.00041096,31]
[324897151,1714403447941,-585.11727367,0.00041096,31]
[324897152,1714403447951,-585.11727367,0.00041096,31]
[324897153,1714403447960,-585.11727367,0.00041096,31]
[324897154,1714403447974,-585.11727367,0.00041096,31]
[324897155,1714403447983,-585.11727367,0.00041096,31]
[324897156,1714403447992,-585.11727367,0.00041096,31]
[324897157,1714403448002,-585.11727367,0.00041096,31]
[324897158,1714403448013,-585.11727367,0.00041096,31]
[324897159,1714403448022,-585.11727367,0.00041096,31]
[324897160,1714403448032,-585.11727367,0.00041096,31]
[324897161,1714403448041,-585.11727367,0.00041096,31]
[324897162,1714403448052,-585.11727367,0.00041096,31]
[324897163,1714403448063,-585.11727367,0.00041096,31]
[324897164,1714403448073,-585.11727367,0.00041096,31]
[324897165,1714403448083,-585.11727367,0.00041096,31]
[324897166,1714403448092,-585.11727367,0.00041096,31]
[324897167,1714403448102,-585.11727367,0.00041096,31]
[324897168,1714403448111,-585.11727367,0.00041096,31]
[324897169,1714403448122,-585.11727367,0.00041096,31]
[324897170,1714403448132,-585.11727367,0.00041096,31]
[324897171,1714403448142,-585.11727367,0.00041096,31]
[324897172,1714403448151,-585.11727367,0.00041096,31]
[324897173,1714403448161,-585.11727367,0.00041096,31]
[324897174,1714403448170,-585.11727367,0.00041096,31]
[324897175,1714403448180,-585.11727367,0.00041096,31]
[324897176,1714403448190,-585.11727367,0.00041096,31]
[324897177,1714403448199,-585.11727367,0.00041096,31]
[324897178,1714403448209,-585.11727367,0.00041096,31]
[324897179,1714403448219,-585.11727367,0.00041096,31]
[324897180,1714403448228,-585.11727367,0.00041096,31]
[324897181,1714403448237,-585.11727367,0.00041096,31]
[324897182,1714403448248,-585.11727367,0.00041096,31]
[324897184,1714403448257,-585.11727367,0.00041096,31]
[324897186,1714403448267,-585.11727367,0.00041096,31]
[324897187,1714403448276,-500.0,0.0004116,30]
[324897188,1714403448285,-500.0,0.0004116,30]
[324897190,1714403448294,-500.0,0.0004116,30]
[324897192,1714403448304,-500.0,0.0004116,30]
[324897195,1714403448313,-616.52317926,0.0004116,30]
[324897196,1714403448323,-162.0,0.0004137,90]
[324897198,1714403448332,-166.666666,0.00041394,2]
[324897199,1714403448341,-1347.781646,0.00041553,120]
[324897201,1714403448350,-999.0,0.00041643,8]
[324897202,1714403448359,-2006.72,0.00042,5]
[324897204,1714403448370,-5000.0,0.00042,120]
[324897206,1714403448379,-444.38453395,0.00042,120]
[324897208,1714403448389,-500.0,0.00042011,30]
[324897209,1714403448399,-620.0,0.00042037,15]
[324897211,1714403448408,-417.0,0.00042245,2]
[324897213,1714403448417,-1637.93310082,0.000424,120]
[324897214,1714403448427,-629.62943843,0.000425,120]
[324897215,1714403448436,-1291.5,0.0004268,120]
[324897216,1714403448446,-999.0,0.00042739,10]
[324897217,1714403448455,-872.86567335,0.000428,60]
[324897218,1714403448465,-5000.0,0.00043,120]
[324897219,1714403448475,-162.0,0.00043151,90]
[324897220,1714403448484,-165.764492,0.00043288,2]
[324897221,1714403448494,-165.849631,0.00043288,2]
[324897222,1714403448503,-5094.56221762,0.000433,120]
[324897223,1714403448512,-7917.30884962,0.000433,30]
[324897224,1714403448522,-29988.76,0.000433,30]
[324897225,1714403448531,-160.0,0.00043429,3]
[324897226,1714403448540,-200309.85,0.000437,7]
[324897227,1714403448549,-2515.30954919,0.00043835,120]
[324897228,1714403448558,-999.0,0.00043835,12]
[324897229,1714403448568,-5000.0,0.00044,120]
[324897230,1714403448577,-638690.7753,0.00044,2]
[324897231,1714403448587,-1000.0,0.00044,120]
[324897232,1714403448596,-159.00286188,0.00044,120]
[324897233,1714403448606,-151.0,0.00044,7]
[324897234,1714403448615,-151.0,0.00044,7]
[324897235,1714403448627,-151.0,0.00044,7]
[324897236,1714403448636,-151.0,0.00044,7]
[324897238,1714403448646,-151.0,0.00044,7]
[324897240,1714403448655,-151.0,0.00044,7]
[324897242,1714403448665,-151.0,0.00044,7]
[324897244,1714403448675,-151.0,0.00044,3]
[324897246,1714403448683,-151.0,0.00044,7]
[324897247,1714403448693,-1067.904186,0.00044,7]
[324897249,1714403448703,-1067.904186,0.00044,7]
[324897251,1714403448713,-151.0,0.00044,7]
[324897253,1714403448722,-1092.826854,0.00044,7]
[324897255,1714403448731,-1092.826854,0.00044,7]
[324897257,1714403448741,-151.0,0.00044,7]
[324897258,1714403448750,-151.0,0.00044,7]
[324897259,1714403448760,-151.0,0.00044,7]
[324897260,1714403448769,-949.860443,0.00044,7]
[324897261,1714403448779,-949.860443,0.00044,7]
[324897262,1714403448788,-151.0,0.00044,7]
[324897263,1714403448798,-151.0,0.00044,7]
[324897264,1714403448808,-575.374773,0.00044,7]
[324897265,1714403448817,-575.374773,0.00044,7]
[324897266,1714403448826,-151.0,0.00044,7]
[324897267,1714403448836,-151.0,0.00044,7]
[324897268,1714403448845,-1000.812377,0.00044,7]
[324897269,1714403448855,-208.506922,0.00044,7]
[324897271,1714403448865,-1000.812377,0.00044,7]
[324897282,1714403448960,-466.666828,0.00044,7]
[324897284,1714403448971,-466.666828,0.00044,7]
[324897286,1714403448984,-151.0,0.00044,7]
[324897288,1714403448994,-312.807001,0.00044,7]
[324897290,1714403449003,-312.807001,0.00044,7]
[324897292,1714403449013,-218.797184,0.00044,7]
[324897294,1714403449024,-151.0,0.00044,7]
[324897296,1714403449033,-151.0,0.00044,7]
[324897298,1714403449043,-302.016416,0.00044,7]
[324897300,1714403449052,-302.016416,0.00044,7]
[324897302,1714403449064,-569.047712,0.00044,7]
[324897304,1714403449074,-190.869089,0.00044,7]
[324897306,1714403449083,-190.869089,0.00044,7]
[324897308,1714403449093,-569.047712,0.00044,7]
[324897310,1714403449102,-615.913097,0.00044,7]
[324897312,1714403449113,-615.913097,0.00044,7]
[324897314,1714403449124,-10012.96353715,0.000441,120]
[324897316,1714403449134,-500.0,0.00044223,30]
[324897318,1714403449144,-154.86062544,0.0004434,10]
[324897320,1714403449153,-160.0,0.00044559,4]
[324897322,1714403449163,-999.0,0.00044931,14]
[324897325,1714403449172,-180000.0,0.0004499,2]
[324897326,1714403449181,-219.47335231,0.00044999,120]
[324897328,1714403449191,-234.0,0.00045,2]
[324897330,1714403449200,-817.49184618,0.00045,20]
[324897333,1714403449211,-520.53,0.00045,7]
[324897335,1714403449221,-500.0,0.00045,7]
[324897337,1714403449231,-221.65555556,0.00045,120]
[324897339,1714403449240,-15406.88202492,0.00045,90]
[324897341,1714403449250,-2620.32987504,0.00045,5]
[324897343,1714403449259,-1000.0,0.00045,2]
[324897344,1714403449269,-10000.0,0.00045,120]
[324897347,1714403449279,-3976.19933875,0.00045,2]
[324897349,1714403449288,-150.74373565,0.00045158,2]
[324897351,1714403449298,-163.0,0.00045308,90]
[324897352,1714403449308,-221.65555556,0.00045644,120]
[324897355,1714403449318,-160.0,0.00045688,5]
[324897356,1714403449328,-154.84515485,0.000459,4]
[324897358,1714403449338,-184.0,0.0004597,35]
[324897361,1714403449347,-150.5,0.0004597,35]
[324897363,1714403449357,-2583.0,0.00045974,6]
[324897364,1714403449366,-3508.29,0.00045974,6]
[324897367,1714403449378,-184.0,0.0004598,35]
[324897368,1714403449387,-150.5,0.0004598,35]
[324897371,1714403449396,-9999.999999,0.00045989,2]
[324897373,1714403449407,-184.0,0.0004599,35]
[324897375,1714403449416,-150.5,0.0004599,35]
[324897377,1714403449425,-5000.0,0.00046,120]
[324897379,1714403449434,-6842.056205,0.00046,120]
[324897381,1714403449444,-999.0,0.00046027,16]
[324897383,1714403449453,-221.65555556,0.00046274,120]
[324897384,1714403449462,-500.0,0.0004655,30]
[324897387,1714403449471,-500.0,0.0004655,30]
[324897389,1714403449480,-500.0,0.00046575,30]
[324897390,1714403449490,-500.0,0.00046575,30]
[324897392,1714403449499,-573.62268151,0.00046575,30]
[324897394,1714403449508,-500.01281628,0.00046575,2]
[324897396,1714403449518,-500.0,0.00046575,30]
[324897398,1714403449528,-500.0,0.00046575,30]
[324897400,1714403449538,-500.0,0.00046575,30]
[324897403,1714403449547,-394.87380458,0.00046575,30]
[324897404,1714403449556,-500.0,0.00046575,30]
[324897407,1714403449566,-500.0,0.00046575,30]
[324897408,1714403449575,-500.0,0.00046575,30]
[324897410,1714403449584,-500.0,0.00046575,30]
[324897412,1714403449593,-500.0,0.00046575,30]
[324897414,1714403449603,-554.38,0.00046575,30]
[324897417,1714403449613,-500.0,0.00046575,30]
[324897419,1714403449624,-500.0,0.00046575,30]
[324897420,1714403449633,-500.0,0.00046575,30]
[324897423,1714403449643,-500.0,0.00046575,30]
[324897425,1714403449652,-220.30316345,0.00046575,30]
[324897427,1714403449662,-500.0,0.00046575,30]
[324897429,1714403449671,-500.90423701,0.00046575,30]
[324897430,1714403449681,-504.01309128,0.00046575,30]
[324897432,1714403449690,-500.0,0.00046575,30]
[324897434,1714403449701,-500.0,0.00046575,30]
[324897437,1714403449711,-501.1423942,0.00046575,30]
[324897439,1714403449720,-692.31,0.00046575,30]
[324897440,1714403449730,-500.0,0.00046575,30]
[324897441,1714403449739,-500.0,0.00046575,30]
[324897442,1714403449749,-500.0,0.00046575,30]
[324897443,1714403449758,-500.0,0.00046575,30]
[324897444,1714403449767,-500.0,0.00046575,30]
[324897445,1714403449776,-500.0,0.00046575,30]
[324897446,1714403449785,-500.0,0.00046575,30]
[324897447,1714403449794,-375.85116075,0.00046575,30]
[324897448,1714403449803,-645.73,0.00046575,30]
[324897449,1714403449813,-500.0,0.00046575,30]
[324897450,1714403449822,-500.0,0.00046575,30]
[324897451,1714403449831,-500.0,0.00046575,30]
[324897452,1714403449840,-500.0,0.00046575,30]
[324897453,1714403449849,-500.0,0.00046575,30]
[324897454,1714403449860,-500.0,0.00046575,30]
[324897456,1714403449870,-500.0,0.00046575,30]
[324897458,1714403449879,-500.0,0.00046575,30]
[324897460,1714403449889,-500.0,0.00046575,30]
[324897462,1714403449899,-500.0,0.00046575,30]
[324897464,1714403449909,-500.0,0.00046575,30]
[324897466,1714403449919,-500.0,0.00046575,30]
[324897468,1714403449928,-500.0,0.00046575,30]
[324897470,1714403449938,-500.0,0.00046575,30]
[324897472,1714403449947,-500.0,0.00046575,30]
[324897474,1714403449956,-500.0,0.00046575,30]
[324897476,1714403449968,-518.13411356,0.00046575,30]